[Event "Czech Youth U10 Boys 2024"]
[Site "Kouty nad Desnou"]
[Date "2024.03.11"]
[Round "4.5"]
[White "Bartak, Tobias"]
[Black "Rybar, Vojta"]
[Result "1-0"]
[ECO "B23"]
[WhiteElo "1545"]
[BlackElo "1435"]
[Annotator "NA RC"]
[PlyCount "91"]
[EventDate "2024.03.10"]
[EventType "swiss"]
[EventCountry "CZE"]
[SourceTitle "playchess.com"]
[Source "ChessBase"]
[SourceQuality "1"]
[TimeControl "40/5400+30:1800+30"]

1. e4 {[%emt 0:00:02]} c5 {[%emt 0:00:08]} 2. Nc3 {[%emt 0:00:06]} e6 {[%emt 0:00:21]} 3. Nf3 {[%emt 0:00:45]} d5 {[%emt 0:00:24]} 4. d3 {[%emt 0:00:19]} Nc6 {[%emt 0:01:25]} 5. g3 {[%emt 0:01:24]} Nf6 {[%emt 0:00:31]} 6. Bg2 {[%emt 0:01:28]} dxe4 {[%emt 0:01:04]} 7. Nxe4 {[%emt 0:01:09]} Nxe4 {[%emt 0:00:16]} 8. dxe4 {[%emt 0:00:10]} Qxd1+ {[%emt 0:00:09]} 9. Kxd1 {[%emt 0:00:10]} b6 {[%emt 0:00:05]} 10. Bf4 {[%emt 0:00:47]} Bb7 {[%emt 0:00:30]} 11. c3 {[%emt 0:00:57]} O-O-O+ {[%emt 0:00:32]} 12. Kc2 {[%emt 0:00:43]} Bd6 {[%emt 0:00:19]} 13. Bxd6 {[%emt 0:00:32]} Rxd6 {[%emt 0:00:06]} 14. Ng5 {[%emt 0:01:29]} Rd7 {[%emt 0:01:04]} 15. Rad1 {[%emt 0:01:35]} Rhd8 {[%emt 0:00:54]} 16. Rxd7 {[%emt 0:01:56]} Rxd7 {[%emt 0:00:10]} 17. Nxh7 {[%emt 0:00:19]} f6 {[%emt 0:00:10]} 18. Nf8 {[%emt 0:00:07]} Rd6 {[%emt 0:01:30]} 19. Rd1 {[%emt 0:03:09]} Rxd1 {[%emt 0:00:41]} 20. Kxd1 {[%emt 0:00:08]} Nd8 {[%emt 0:00:28]} 21. Ng6 {[%emt 0:02:02]} f5 {[%emt 0:00:27]} 22. f3 {[%emt 0:00:51]} Nf7 {[%emt 0:00:31]} 23. exf5 {[%emt 0:00:23]} exf5 {[%emt 0:00:08]} 24. Ne7+ {[%emt 0:00:24]} Kd7 {[%emt 0:01:02]} 25. Nxf5 {[%emt 0:00:20]} g6 {[%emt 0:00:13]} 26. Ne3 {[%emt 0:01:11]} Ne5 {[%emt 0:00:13]} 27. f4 {[%emt 0:00:28]} Nf3 28. Ke2 {[%emt 0:00:39]} Ng1+ {[%emt 0:01:39]} 29. Kf2 {[%emt 0:00:07]} Bxg2 {[%emt 0:00:23]} 30. Kxg2 {[%emt 0:00:09]} Ne2 {[%emt 0:00:11]} 31. Kf3 {[%emt 0:00:24]} Nc1 {[%emt 0:00:14]} 32. a3 {[%emt 0:01:03]} Nd3 {[%emt 0:00:12]} 33. b3 {[%emt 0:00:17]} Ke6 {[%emt 0:01:24]} 34. Kg4 {[%emt 0:01:01]} Nf2+ {[%emt 0:01:01]} 35. Kg5 {[%emt 0:00:15]} Kf7 {[%emt 0:00:12]} 36. Ng4 {[%emt 0:02:24]} Ne4+ {[%emt 0:00:20]} 37. Kh6 {[%emt 0:00:11]} Nxc3 {[%emt 0:00:31]} 38. Ne5+ {[%emt 0:00:07]} Kf6 {[%emt 0:00:13]} 39. Nxg6 {[%emt 0:00:18]} Nb5 {[%emt 0:00:10]} 40. g4 {[%emt 0:00:50]} Nd4 {[%emt 0:00:13]} 41. g5+ {[%emt 0:30:10]} Kf7 {[%emt 0:30:09]} 42. Ne5+ {[%emt 0:00:14]} Kg8 {[%emt 0:00:15]} 43. g6 {[%emt 0:00:55]} Nxb3 44. Nc6 {[%emt 0:00:24]} c4 {[%emt 0:00:29]} 45. Ne7+ {[%emt 0:00:05]} Kf8 {[%emt 0:00:16]} 46. g7+ {[%emt 0:00:06]} 1-0

[Event "Czech Youth U10 Boys 2024"]
[Site "Kouty nad Desnou"]
[Date "2024.03.11"]
[Round "4.6"]
[White "Strihavka, Petr"]
[Black "Menkov, Ivan"]
[Result "1/2-1/2"]
[ECO "C49"]
[WhiteElo "1447"]
[BlackElo "1524"]
[Annotator "NA RC"]
[PlyCount "69"]
[EventDate "2024.03.10"]
[EventType "swiss"]
[EventCountry "CZE"]
[SourceTitle "playchess.com"]
[Source "ChessBase"]
[SourceQuality "1"]
[TimeControl "40/5400+30:1800+30"]

1. e4 {[%emt 0:00:04]} e5 {[%emt 0:00:05]} 2. Nf3 {[%emt 0:00:19]} Nc6 {[%emt 0:00:08]} 3. Nc3 {[%emt 0:00:17]} Nf6 {[%emt 0:00:10]} 4. Bb5 {[%emt 0:00:11]} Bb4 {[%emt 0:00:14]} 5. O-O {[%emt 0:00:31]} O-O {[%emt 0:00:12]} 6. d3 Re8 {[%emt 0:00:21]} 7. Bg5 {[%emt 0:02:25]} h6 {[%emt 0:01:15]} 8. Bh4 a6 9. Bc4 {[%emt 0:01:14]} Bxc3 {[%emt 0:01:01]} 10. bxc3 {[%emt 0:00:18]} d6 {[%emt 0:00:30]} 11. h3 {[%emt 0:00:13]} Be6 {[%emt 0:00:11]} 12. Bb3 {[%emt 0:00:35]} Kh8 {[%emt 0:04:14]} 13. Qd2 {[%emt 0:06:14]} Qe7 {[%emt 0:05:00]} 14. Rab1 {[%emt 0:03:38]} b5 {[%emt 0:00:18]} 15. a4 {[%emt 0:03:04]} Bxb3 {[%emt 0:01:03]} 16. cxb3 {[%emt 0:00:22]} Qe6 {[%emt 0:01:01]} 17. axb5 {[%emt 0:01:42]} axb5 {[%emt 0:00:06]} 18. c4 {[%emt 0:00:27]} bxc4 {[%emt 0:00:59]} 19. bxc4 {[%emt 0:00:19]} Ra3 {[%emt 0:02:57]} 20. Ra1 {[%emt 0:02:09]} Rea8 {[%emt 0:00:16]} 21. Rxa3 {[%emt 0:00:59]} Rxa3 {[%emt 0:00:13]} 22. Rb1 {[%emt 0:00:39]} Nh5 {[%emt 0:01:11]} 23. Rb7 {[%emt 0:05:15]} Qc8 {[%emt 0:02:42]} 24. Rb1 {[%emt 0:00:53]} Nf4 {[%emt 0:00:23]} 25. Ne1 {[%emt 0:02:24]} Nd4 {[%emt 0:05:08]} 26. Rb2 {[%emt 0:15:41]} Ra1 {[%emt 0:08:46]} 27. Ra2 {[%emt 0:07:09]} Nf3+ {[%emt 0:00:22]} 28. gxf3 {[%emt 0:00:42]} Qxh3 {[%emt 0:00:08]} 29. Rxa1 {[%emt 0:00:53]} Qxh4 {[%emt 0:00:27]} 30. Ra8+ {[%emt 0:00:42]} Kh7 {[%emt 0:00:06]} 31. Rc8 {[%emt 0:01:42]} Qg5+ {[%emt 0:00:36]} 32. Kf1 {[%emt 0:01:16]} Qh4 {[%emt 0:00:29]} 33. Kg1 {[%emt 0:00:20]} Qg5+ {[%emt 0:00:06]} 34. Kf1 {[%emt 0:00:10]} Qh4 {[%emt 0:00:07]} 35. Kg1 {[%emt 0:03:21]} 1/2-1/2

[Event "Czech Youth U10 Boys 2024"]
[Site "Kouty nad Desnou"]
[Date "2024.03.11"]
[Round "4.7"]
[White "Cerny, Ren"]
[Black "Vratny, Vojtech"]
[Result "1/2-1/2"]
[ECO "B21"]
[WhiteElo "1623"]
[BlackElo "1566"]
[Annotator "NA RC"]
[PlyCount "70"]
[EventDate "2024.03.10"]
[EventType "swiss"]
[EventCountry "CZE"]
[SourceTitle "playchess.com"]
[Source "ChessBase"]
[SourceQuality "1"]
[TimeControl "40/5400+30:1800+30"]

1. e4 {[%emt 0:00:03]} c5 {[%emt 0:00:13]} 2. d4 {[%emt 0:00:09]} cxd4 {[%emt 0:00:26]} 3. c3 {[%emt 0:00:14]} Nf6 {[%emt 0:00:13]} 4. e5 {[%emt 0:00:57]} Nd5 {[%emt 0:00:16]} 5. cxd4 {[%emt 0:00:18]} e6 {[%emt 0:00:49]} 6. Nf3 {[%emt 0:00:42]} d6 {[%emt 0:00:42]} 7. Bc4 {[%emt 0:03:24]} Nb6 {[%emt 0:01:03]} 8. Bb3 {[%emt 0:01:17]} dxe5 {[%emt 0:00:28]} 9. dxe5 {[%emt 0:02:08]} Qxd1+ {[%emt 0:00:51]} 10. Kxd1 {[%emt 0:00:56]} Be7 {[%emt 0:00:43]} 11. Re1 {[%emt 0:01:15]} O-O {[%emt 0:01:45]} 12. Nc3 {[%emt 0:01:25]} Rd8+ {[%emt 0:02:08]} 13. Ke2 Nc6 {[%emt 0:01:12]} 14. Be3 {[%emt 0:05:11]} Nd7 {[%emt 0:04:47]} 15. Bf4 {[%emt 0:05:41]} Nc5 {[%emt 0:02:43]} 16. Rad1 Bd7 {[%emt 0:03:19]} 17. Be3 {[%emt 0:14:35]} Nxb3 {[%emt 0:01:06]} 18. axb3 b6 {[%emt 0:07:59]} 19. Ne4 {[%emt 0:03:30]} Na5 {[%emt 0:02:08]} 20. Nd4 {[%emt 0:01:48]} Nc6 21. f4 {[%emt 0:02:16]} Nxd4+ {[%emt 0:11:23]} 22. Rxd4 {[%emt 0:10:59]} Bb5+ {[%emt 0:06:31]} 23. Kf2 {[%emt 0:01:37]} Rxd4 {[%emt 0:01:58]} 24. Bxd4 {[%emt 0:00:20]} Rd8 {[%emt 0:01:57]} 25. Ke3 {[%emt 0:00:42]} Rc8 {[%emt 0:02:45]} 26. Bc3 {[%emt 0:01:47]} Bc6 {[%emt 0:02:01]} 27. Ra1 {[%emt 0:02:17]} Rc7 {[%emt 0:01:18]} 28. Rd1 {[%emt 0:00:43]} Rd7 {[%emt 0:03:05]} 29. Rxd7 {[%emt 0:00:37]} Bxd7 {[%emt 0:00:30]} 30. Kd4 {[%emt 0:01:14]} Kf8 {[%emt 0:01:34]} 31. g3 {[%emt 0:01:19]} h6 {[%emt 0:02:14]} 32. Kc4 {[%emt 0:01:19]} Bc6 {[%emt 0:02:43]} 33. Nd2 {[%emt 0:03:00]} Ke8 {[%emt 0:02:31]} 34. b4 {[%emt 0:01:49]} Bc5 35. b5 Be7 1/2-1/2

[Event "Czech Youth U10 Boys 2024"]
[Site "Kouty nad Desnou"]
[Date "2024.03.11"]
[Round "4.8"]
[White "Dlouhy, Martin"]
[Black "Fadrny, Jonas"]
[Result "1/2-1/2"]
[ECO "E18"]
[WhiteElo "1965"]
[BlackElo "1600"]
[Annotator "ChessBase"]
[PlyCount "86"]
[EventDate "2024.03.10"]
[EventType "swiss"]
[EventCountry "CZE"]
[SourceTitle "playchess.com"]
[Source "ChessBase"]
[SourceQuality "1"]
[TimeControl "40/5400+30:1800+30"]

1. Nf3 {[%emt 0:00:03]} Nf6 {[%emt 0:00:08]} 2. c4 b6 {[%emt 0:01:06]} 3. d4 {[%emt 0:00:53]} e6 {[%emt 0:00:45]} 4. Nc3 {[%emt 0:00:34]} Bb7 {[%emt 0:01:19]} 5. g3 {[%emt 0:01:06]} Be7 {[%emt 0:03:36]} 6. Bg2 {[%emt 0:01:00]} O-O {[%emt 0:02:16]} 7. O-O {[%emt 0:01:10]} d6 {[%emt 0:04:43]} 8. Nd2 {[%emt 0:01:11]} Bxg2 {[%emt 0:01:43]} 9. Kxg2 {[%emt 0:01:22]} Nbd7 {[%emt 0:01:05]} 10. e4 {[%emt 0:02:02]} e5 {[%emt 0:02:10]} 11. d5 {[%emt 0:00:22]} Qc8 {[%emt 0:07:03]} 12. b3 {[%emt 0:02:36]} c6 {[%emt 0:00:49]} 13. Qe2 {[%emt 0:03:22]} cxd5 {[%emt 0:01:47]} 14. exd5 {[%emt 0:00:35]} Qb7 {[%emt 0:02:55]} 15. Ba3 {[%emt 0:06:09]} Rac8 {[%emt 0:08:50]} 16. Nb5 {[%emt 0:01:45]} Qb8 {[%emt 0:02:12]} 17. f4 {[%emt 0:01:40]} a6 {[%emt 0:01:46]} 18. fxe5 {[%emt 0:01:30]} axb5 {[%emt 0:03:16]} 19. exf6 {[%emt 0:00:25]} Bxf6 {[%emt 0:00:58]} 20. Rac1 {[%emt 0:01:05]} bxc4 {[%emt 0:01:28]} 21. Nxc4 {[%emt 0:00:52]} Qb7 {[%emt 0:04:20]} 22. Rfd1 {[%emt 0:02:41]} Rfe8 {[%emt 0:03:02]} 23. Qd2 {[%emt 0:05:56]} Be5 {[%emt 0:03:07]} 24. Bxd6 {[%emt 0:00:35]} Rxc4 {[%emt 0:09:18]} 25. Rxc4 {[%emt 0:01:03]} Bxd6 {[%emt 0:00:19]} 26. Rc6 {[%emt 0:02:24]} Bc5 {[%emt 0:04:10]} 27. b4 {[%emt 0:00:36]} Nb8 {[%emt 0:08:03]} 28. bxc5 {[%emt 0:01:03]} Nxc6 {[%emt 0:00:25]} 29. dxc6 {[%emt 0:00:11]} Qxc6+ {[%emt 0:00:40]} 30. Qd5 {[%emt 0:00:22]} Qa4 {[%emt 0:03:06]} 31. cxb6 {[%emt 0:02:59]} Qc2+ {[%emt 0:02:37]} 32. Kh3 {[%emt 0:02:07]} h6 {[%emt 0:03:05]} 33. b7 {[%emt 0:01:15]} Rb8 {[%emt 0:06:36]} 34. Qd8+ {[%emt 0:00:27]} Rxd8 {[%emt 0:00:14]} 35. Rxd8+ {[%emt 0:00:15]} Kh7 {[%emt 0:00:24]} 36. b8=Q {[%emt 0:00:11]} Qf5+ {[%emt 0:00:16]} 37. Kg2 {[%emt 0:01:26]} Qc2+ {[%emt 0:01:05]} 38. Kh1 {[%emt 0:00:22]} Qe4+ {[%emt 0:00:50]} 39. Kg1 {[%emt 0:00:33]} Qe1+ {[%emt 0:00:30]} 40. Kg2 {[%emt 0:00:13]} Qe2+ {[%emt 0:00:40]} 41. Kh3 {[%emt 0:30:33]} Qh5+ {[%emt 0:30:27]} 42. Kg2 {[%emt 0:00:44]} Qe2+ {[%emt 0:00:08]} 43. Kg1 {[%emt 0:00:50]} Qe1+ {[%emt 0:00:07]} 1/2-1/2

[Event "Czech Youth U10 Boys 2024"]
[Site "Kouty nad Desnou"]
[Date "2024.03.11"]
[Round "4.9"]
[White "Kobersky, Matyas"]
[Black "Zelenka, Tomas"]
[Result "0-1"]
[ECO "E00"]
[WhiteElo "1405"]
[BlackElo "1566"]
[Annotator "NA RC"]
[PlyCount "62"]
[EventDate "2024.03.10"]
[EventType "swiss"]
[EventCountry "CZE"]
[SourceTitle "playchess.com"]
[Source "ChessBase"]
[SourceQuality "1"]
[TimeControl "40/5400+30:1800+30"]

1. d4 {[%emt 0:00:08]} Nf6 {[%emt 0:00:12]} 2. c4 {[%emt 0:00:25]} e6 {[%emt 0:00:39]} 3. a3 {[%emt 0:02:01]} d5 {[%emt 0:00:18]} 4. Nc3 {[%emt 0:00:17]} Be7 {[%emt 0:00:44]} 5. Nf3 {[%emt 0:01:36]} O-O {[%emt 0:00:37]} 6. Bg5 {[%emt 0:01:05]} Nbd7 {[%emt 0:00:29]} 7. Bxf6 {[%emt 0:01:56]} Nxf6 {[%emt 0:00:23]} 8. e3 {[%emt 0:01:58]} c6 {[%emt 0:01:38]} 9. Bd3 {[%emt 0:03:10]} dxc4 {[%emt 0:01:03]} 10. Bxc4 {[%emt 0:00:28]} Nd5 {[%emt 0:01:18]} 11. O-O {[%emt 0:02:16]} Qb6 {[%emt 0:12:51]} 12. Qb3 {[%emt 0:05:31]} Qxb3 {[%emt 0:03:06]} 13. Bxb3 {[%emt 0:00:28]} Bd7 {[%emt 0:01:21]} 14. Rad1 {[%emt 0:05:57]} Nxc3 {[%emt 0:01:03]} 15. bxc3 {[%emt 0:00:46]} Bxa3 {[%emt 0:00:05]} 16. Bc2 {[%emt 0:02:34]} Bd6 {[%emt 0:03:36]} 17. Ng5 {[%emt 0:02:14]} h6 {[%emt 0:03:10]} 18. Ne4 {[%emt 0:01:54]} Be7 {[%emt 0:04:24]} 19. Rb1 {[%emt 0:03:23]} b6 {[%emt 0:01:12]} 20. Ra1 {[%emt 0:00:58]} c5 {[%emt 0:02:27]} 21. Nd2 {[%emt 0:01:46]} cxd4 {[%emt 0:00:28]} 22. exd4 Rfc8 {[%emt 0:01:29]} 23. c4 {[%emt 0:05:13]} a5 {[%emt 0:00:48]} 24. Ra2 {[%emt 0:01:35]} Ra7 {[%emt 0:02:26]} 25. Rfa1 {[%emt 0:00:33]} Rca8 {[%emt 0:01:01]} 26. f3 {[%emt 0:01:28]} a4 {[%emt 0:02:24]} 27. Be4 {[%emt 0:00:31]} Rc8 {[%emt 0:00:42]} 28. Bc2 {[%emt 0:01:03]} a3 {[%emt 0:01:13]} 29. Bd3 {[%emt 0:00:24]} Bc6 {[%emt 0:02:56]} 30. Ne4 {[%emt 0:04:01]} Bxe4 {[%emt 0:03:42]} 31. Bxe4 {[%emt 0:01:08]} Rxc4 {[%emt 0:01:14]} 0-1

[Event "Czech Youth U10 Boys 2024"]
[Site "Kouty nad Desnou"]
[Date "2024.03.12"]
[Round "5.1"]
[White "Vo, Daniel"]
[Black "Vydra, David"]
[Result "1/2-1/2"]
[ECO "B94"]
[WhiteElo "1629"]
[BlackElo "1583"]
[Annotator "NA RC"]
[PlyCount "65"]
[EventDate "2024.03.10"]
[EventType "swiss"]
[EventCountry "CZE"]
[SourceTitle "playchess.com"]
[Source "ChessBase"]
[SourceQuality "1"]
[TimeControl "40/5400+30:1800+30"]

1. e4 {[%emt 0:00:02]} c5 {[%emt 0:00:10]} 2. Nf3 {[%emt 0:00:07]} d6 {[%emt 0:00:11]} 3. d4 {[%emt 0:00:14]} cxd4 {[%emt 0:00:09]} 4. Nxd4 {[%emt 0:00:11]} Nf6 {[%emt 0:00:14]} 5. Nc3 {[%emt 0:00:10]} a6 {[%emt 0:00:13]} 6. Bg5 {[%emt 0:00:08]} Nbd7 {[%emt 0:00:12]} 7. f4 {[%emt 0:01:04]} Qc7 {[%emt 0:00:19]} 8. Qf3 {[%emt 0:06:37]} h6 {[%emt 0:00:13]} 9. Bh4 {[%emt 0:00:25]} g5 {[%emt 0:00:14]} 10. fxg5 {[%emt 0:09:30]} hxg5 {[%emt 0:01:31]} 11. Bxg5 {[%emt 0:00:43]} Qc5 {[%emt 0:00:14]} 12. Bxf6 {[%emt 0:00:43]} Nxf6 {[%emt 0:00:28]} 13. Qd3 {[%emt 0:04:02]} Bh6 {[%emt 0:02:14]} 14. Nb3 {[%emt 0:01:22]} Qc7 {[%emt 0:01:41]} 15. Nd5 {[%emt 0:01:36]} Nxd5 {[%emt 0:00:51]} 16. exd5 {[%emt 0:00:59]} Bd7 {[%emt 0:01:02]} 17. Qc4 {[%emt 0:02:39]} Qd8 {[%emt 0:02:25]} 18. Qc3 {[%emt 0:01:47]} Rg8 {[%emt 0:00:44]} 19. Qd3 {[%emt 0:01:07]} Rg6 {[%emt 0:06:24]} 20. Nd2 {[%emt 0:17:57]} Rc8 {[%emt 0:03:03]} 21. O-O-O {[%emt 0:00:59]} Rf6 {[%emt 0:01:28]} 22. Qg3 {[%emt 0:04:47]} Qc7 {[%emt 0:02:24]} 23. Bd3 {[%emt 0:03:10]} Ba4 {[%emt 0:06:48]} 24. Qg8+ {[%emt 0:02:26]} Bf8 {[%emt 0:02:27]} 25. b3 {[%emt 0:00:55]} Kd7 {[%emt 0:15:13]} 26. Qg4+ {[%emt 0:00:56]} Kd8 {[%emt 0:01:13]} 27. Qxa4 {[%emt 0:00:14]} Qc3 {[%emt 0:01:28]} 28. Kb1 {[%emt 0:01:12]} Rf4 {[%emt 0:10:14]} 29. Ne4 {[%emt 0:13:04]} Rxe4 {[%emt 0:00:50]} 30. Qxe4 {[%emt 0:00:12]} Bg7 {[%emt 0:00:42]} 31. Kc1 {[%emt 0:00:21]} Bh6+ {[%emt 0:00:09]} 32. Kb1 {[%emt 0:00:09]} Bg7 {[%emt 0:00:33]} 33. Kc1 {[%emt 0:01:53]} 1/2-1/2

[Event "Czech Youth U10 Boys 2024"]
[Site "Kouty nad Desnou"]
[Date "2024.03.12"]
[Round "5.2"]
[White "Trejbal, Jindrich"]
[Black "Skoloud, Josef"]
[Result "1-0"]
[ECO "A03"]
[WhiteElo "1947"]
[BlackElo "1564"]
[Annotator "RC"]
[PlyCount "41"]
[EventDate "2024.03.10"]
[EventType "swiss"]
[EventCountry "CZE"]
[SourceTitle "playchess.com"]
[Source "ChessBase"]
[SourceQuality "1"]
[TimeControl "40/5400+30:1800+30"]

1. f4 {[%emt 0:00:01]} d5 {[%emt 0:00:05]} 2. Nf3 {[%emt 0:00:05]} Nf6 {[%emt 0:00:07]} 3. e3 {[%emt 0:00:05]} c5 {[%emt 0:00:31]} 4. d4 {[%emt 0:00:06]} Nc6 {[%emt 0:00:43]} 5. c3 {[%emt 0:00:08]} Bf5 {[%emt 0:00:40]} 6. Bd3 {[%emt 0:00:24]} Bxd3 {[%emt 0:00:37]} 7. Qxd3 {[%emt 0:00:27]} e6 {[%emt 0:01:19]} 8. O-O {[%emt 0:01:42]} Be7 {[%emt 0:02:25]} 9. Nbd2 {[%emt 0:01:32]} O-O {[%emt 0:00:53]} 10. Ne5 {[%emt 0:00:23]} Nd7 {[%emt 0:05:42]} 11. Rf3 {[%emt 0:05:24]} Ndxe5 {[%emt 0:02:21]} 12. fxe5 {[%emt 0:00:19]} c4 {[%emt 0:00:54]} 13. Qc2 {[%emt 0:06:50]} b5 {[%emt 0:02:09]} 14. Rh3 {[%emt 0:01:36]} h6 {[%emt 0:00:34]} 15. Nf3 {[%emt 0:00:34]} Re8 {[%emt 0:05:43]} 16. e4 {[%emt 0:06:12]} dxe4 {[%emt 0:02:33]} 17. Qxe4 {[%emt 0:00:40]} Qd5 {[%emt 0:00:25]} 18. Qg4 {[%emt 0:07:08]} Kh7 {[%emt 0:06:58]} 19. Bxh6 {[%emt 0:04:16]} gxh6 {[%emt 0:00:41]} 20. Ng5+ {[%emt 0:00:10]} Kg7 {[%emt 0:01:11]} 21. Nxe6+ {[%emt 0:00:14]} 1-0

[Event "Czech Youth U10 Boys 2024"]
[Site "Kouty nad Desnou"]
[Date "2024.03.12"]
[Round "5.3"]
[White "Bartak, Tobias"]
[Black "Bucek, Vit"]
[Result "1/2-1/2"]
[ECO "B30"]
[WhiteElo "1545"]
[BlackElo "1603"]
[Annotator "NA RC"]
[PlyCount "114"]
[EventDate "2024.03.10"]
[EventType "swiss"]
[EventCountry "CZE"]
[SourceTitle "playchess.com"]
[Source "ChessBase"]
[SourceQuality "1"]
[TimeControl "40/5400+30:1800+30"]

1. e4 {[%emt 0:00:07]} c5 {[%emt 0:00:07]} 2. Nf3 {[%emt 0:00:21]} Nc6 {[%emt 0:00:09]} 3. c3 {[%emt 0:00:34]} g6 {[%emt 0:00:18]} 4. d4 {[%emt 0:00:40]} cxd4 {[%emt 0:00:10]} 5. cxd4 {[%emt 0:01:12]} d5 {[%emt 0:00:21]} 6. e5 {[%emt 0:03:01]} Bg7 {[%emt 0:00:33]} 7. Bb5 {[%emt 0:01:45]} f6 {[%emt 0:04:54]} 8. Bxc6+ {[%emt 0:10:17]} bxc6 {[%emt 0:00:33]} 9. Qa4 {[%emt 0:00:13]} Qc7 {[%emt 0:01:04]} 10. Bf4 Qb6 {[%emt 0:05:45]} 11. O-O {[%emt 0:07:14]} Bd7 {[%emt 0:06:14]} 12. Nbd2 Rc8 {[%emt 0:13:30]} 13. Qb3 {[%emt 0:11:36]} e6 {[%emt 0:04:08]} 14. Qxb6 {[%emt 0:08:02]} axb6 {[%emt 0:08:33]} 15. b4 {[%emt 0:03:14]} f5 16. Nb3 {[%emt 0:08:13]} Bf8 {[%emt 0:02:37]} 17. Bd2 {[%emt 0:00:59]} h6 {[%emt 0:04:03]} 18. Nh4 {[%emt 0:01:03]} Ne7 {[%emt 0:00:50]} 19. f4 {[%emt 0:00:23]} Rg8 {[%emt 0:01:18]} 20. Nf3 {[%emt 0:00:40]} Rc7 {[%emt 0:01:16]} 21. Rfc1 {[%emt 0:02:41]} Rc8 {[%emt 0:01:48]} 22. a4 {[%emt 0:02:16]} Rb8 {[%emt 0:02:36]} 23. Rcb1 {[%emt 0:04:46]} g5 {[%emt 0:09:49]} 24. fxg5 {[%emt 0:06:36]} hxg5 {[%emt 0:01:22]} 25. Nxg5 Ng6 {[%emt 0:01:00]} 26. g3 {[%emt 0:01:39]} Be7 {[%emt 0:00:53]} 27. a5 {[%emt 0:04:23]} Bxg5 {[%emt 0:02:19]} 28. Bxg5 {[%emt 0:01:34]} Rb7 {[%emt 0:02:23]} 29. axb6 {[%emt 0:01:33]} Rxb6 {[%emt 0:00:46]} 30. Nc5 {[%emt 0:01:40]} Rb8 {[%emt 0:00:46]} 31. Nxd7 Kxd7 {[%emt 0:00:37]} 32. Ra7+ {[%emt 0:00:34]} Kc8 {[%emt 0:01:32]} 33. Rc1 {[%emt 0:03:48]} Nxe5 {[%emt 0:08:49]} 34. Bf4 {[%emt 0:01:12]} Nf3+ {[%emt 0:00:56]} 35. Kf2 {[%emt 0:00:26]} Nxd4 {[%emt 0:00:43]} 36. Bxb8 {[%emt 0:00:12]} Kxb8 {[%emt 0:00:42]} 37. Re7 {[%emt 0:02:21]} Rg4 {[%emt 0:01:43]} 38. Re1 {[%emt 0:06:36]} Kc8 {[%emt 0:01:44]} 39. h3 {[%emt 0:00:43]} Kd8 {[%emt 0:00:49]} 40. R7xe6 {[%emt 0:00:27]} Re4 {[%emt 0:01:08]} 41. R1xe4 {[%emt 0:31:01]} fxe4 {[%emt 0:30:38]} 42. Rf6 {[%emt 0:00:52]} Ke7 {[%emt 0:01:16]} 43. Rh6 Kf7 {[%emt 0:00:46]} 44. g4 {[%emt 0:04:36]} Kg7 {[%emt 0:01:29]} 45. Rd6 {[%emt 0:01:01]} Kf7 {[%emt 0:00:42]} 46. b5 {[%emt 0:00:24]} Ke7 {[%emt 0:01:35]} 47. Rxc6 Nxb5 {[%emt 0:00:31]} 48. Rc5 {[%emt 0:00:38]} Nd4 {[%emt 0:01:14]} 49. Rxd5 {[%emt 0:00:15]} Nf3 {[%emt 0:00:12]} 50. Ke3 {[%emt 0:00:36]} Ng1 {[%emt 0:01:45]} 51. Kxe4 {[%emt 0:00:49]} Nxh3 {[%emt 0:00:19]} 52. Kf3 {[%emt 0:00:44]} Kf6 {[%emt 0:00:25]} 53. Kg3 {[%emt 0:01:44]} Ng5 {[%emt 0:00:12]} 54. Rf5+ {[%emt 0:00:07]} Kg6 {[%emt 0:00:26]} 55. Kh4 {[%emt 0:00:08]} Nh7 {[%emt 0:01:00]} 56. g5 {[%emt 0:00:47]} Kxf5 {[%emt 0:00:27]} 57. g6 {[%emt 0:00:04]} Kxg6 {[%emt 0:00:13]} 1/2-1/2

[Event "Czech Youth U10 Boys 2024"]
[Site "Kouty nad Desnou"]
[Date "2024.03.12"]
[Round "5.4"]
[White "Lutskiy, Mikhail"]
[Black "Strihavka, Petr"]
[Result "1/2-1/2"]
[ECO "C50"]
[WhiteElo "1676"]
[BlackElo "1447"]
[Annotator "NA RC"]
[PlyCount "82"]
[EventDate "2024.03.10"]
[EventType "swiss"]
[EventCountry "CZE"]
[SourceTitle "playchess.com"]
[Source "ChessBase"]
[SourceQuality "1"]
[TimeControl "40/5400+30:1800+30"]

1. e4 {[%emt 0:00:06]} e5 {[%emt 0:00:04]} 2. Nf3 {[%emt 0:00:21]} Nc6 {[%emt 0:00:04]} 3. Bc4 {[%emt 0:00:19]} Nf6 {[%emt 0:00:03]} 4. d3 {[%emt 0:00:25]} Bc5 {[%emt 0:00:32]} 5. c3 {[%emt 0:00:24]} O-O {[%emt 0:01:59]} 6. O-O {[%emt 0:00:13]} d6 {[%emt 0:00:36]} 7. Re1 {[%emt 0:00:36]} Bg4 {[%emt 0:01:24]} 8. Be3 {[%emt 0:01:16]} Bb6 {[%emt 0:00:34]} 9. Nbd2 {[%emt 0:00:26]} h6 {[%emt 0:02:07]} 10. Qc2 {[%emt 0:01:00]} Re8 {[%emt 0:00:53]} 11. h3 {[%emt 0:00:40]} Be6 {[%emt 0:00:36]} 12. Rad1 {[%emt 0:05:34]} Qd7 {[%emt 0:03:24]} 13. Bb5 {[%emt 0:11:27]} Bxe3 {[%emt 0:01:44]} 14. fxe3 {[%emt 0:01:06]} a6 {[%emt 0:00:25]} 15. Bxc6 {[%emt 0:01:45]} Qxc6 {[%emt 0:00:40]} 16. d4 {[%emt 0:00:29]} exd4 {[%emt 0:01:34]} 17. exd4 {[%emt 0:00:21]} Qb6 {[%emt 0:02:13]} 18. Kh1 {[%emt 0:01:37]} Bd7 {[%emt 0:03:05]} 19. Rc1 {[%emt 0:04:51]} Rad8 {[%emt 0:03:20]} 20. c4 {[%emt 0:02:11]} c5 {[%emt 0:00:30]} 21. d5 {[%emt 0:00:19]} Qc7 {[%emt 0:01:22]} 22. Qd3 {[%emt 0:02:08]} Qc8 {[%emt 0:01:28]} 23. Nh4 {[%emt 0:03:09]} g5 {[%emt 0:06:13]} 24. Nf5 {[%emt 0:01:30]} Bxf5 {[%emt 0:00:35]} 25. exf5 {[%emt 0:00:12]} Kg7 {[%emt 0:00:25]} 26. Qf3 {[%emt 0:04:41]} Rxe1+ {[%emt 0:00:38]} 27. Rxe1 {[%emt 0:00:23]} Re8 {[%emt 0:00:12]} 28. Rf1 {[%emt 0:03:37]} Qd8 {[%emt 0:01:02]} 29. Qc3 {[%emt 0:02:17]} Qe7 {[%emt 0:02:04]} 30. Nf3 {[%emt 0:00:54]} Qe3 {[%emt 0:01:30]} 31. Qxe3 {[%emt 0:07:04]} Rxe3 {[%emt 0:00:17]} 32. Re1 {[%emt 0:00:47]} Rxe1+ {[%emt 0:00:12]} 33. Nxe1 {[%emt 0:00:09]} Ne4 {[%emt 0:00:20]} 34. g4 {[%emt 0:00:36]} Kf6 {[%emt 0:00:16]} 35. Nd3 {[%emt 0:00:27]} b5 {[%emt 0:01:09]} 36. b3 {[%emt 0:00:29]} b4 {[%emt 0:00:18]} 37. Kg2 {[%emt 0:01:16]} Nc3 {[%emt 0:00:27]} 38. Kg3 {[%emt 0:00:28]} Nxa2 {[%emt 0:00:11]} 39. Kf3 {[%emt 0:01:07]} Nc3 {[%emt 0:00:34]} 40. Ke3 {[%emt 0:00:22]} a5 {[%emt 0:00:23]} 41. Nb2 {[%emt 0:30:45]} Ke5 1/2-1/2